Cogmind - Beta 16 @@@ ROGUE MODE // 2025.11.12 @ 22:08:37 Player: WarMechanic Result: Destroyed by VL-TP9(R) with Subdweller Beam Cannon Performance ------------- Evolutions (0) 0 Regions Visited (3) 600 Robots Destroyed (33) 165 Value Destroyed (534) 534 Prototype IDs (0) 0 Alien Tech Used (0) 0 Bonus (0) 0 TOTAL SCORE: 1299 Bonus ------- None Cogmind --------- Core Integrity 0/250 Matter 295/300 Energy 235/250 System Corruption 2% Temperature Cool (9) Movement Treading (480) Ox4 Location -10/Subcaves Parts ------- > --- POWER (1) -------- Ion Engine > --- PROPULSION (2) --- Light Treads Compact Wheel > --- UTILITY (2) ------ Improved Heat Sink Huge Storage Unit > --- WEAPON (2) ------- Beam Cannon > --- INVENTORY (25) --- Ion Engine Ion Engine Ion Engine Ion Engine Light Treads Light Treads Compact Wheel Compact Wheel Heat Sink Heat Sink Heat Sink Huge Storage Unit Seismic Detector Targeting Computer Light Armor Plating Hacking Suite Bomb Drone Bay Medium Laser Small Laser Small Laser Small Laser Grenade Launcher Grenade Launcher Datajack Peak State ------------ > --- POWER ------------ Ion Engine > --- PROPULSION ------- Light Treads Compact Wheel > --- UTILITY ---------- Improved Heat Sink Huge Storage Unit > --- WEAPON ----------- Beam Cannon Grenade Launcher > --- INVENTORY -------- Ion Engine Ion Engine Ion Engine Ion Engine Light Treads Light Treads Compact Wheel Compact Wheel Heat Sink Heat Sink Heat Sink Huge Storage Unit Seismic Detector Targeting Computer Light Armor Plating Hacking Suite Bomb Drone Bay Medium Laser Small Laser Small Laser Small Laser Small Laser Grenade Launcher Datajack [Rating: 12] Favorites ----------- Power Ion Engine Engine Ion Engine Propulsion Compact Wheel Treads Light Treads Wheel Compact Wheel Utility Improved Heat Sink Device Improved Heat Sink Storage Huge Storage Unit Weapon Beam Cannon Energy Gun Small Laser Energy Cannon Beam Cannon Ballistic Gun Assault Rifle Launcher Grenade Launcher Build | -11 -10 -10 -10 ------- Run | Yrd Mat Min Sub Slots Evolved . | . . . . Power . | . . . . Propulsion . | . . . . Utility . | . . . . Weapon . | . . . . Parts Attached 16 | 8 6 1 1 Power 3 | 1 1 . 1 Engine 3 | 1 1 . 1 Core . | . . . . Reactor . | . . . . Propulsion 3 | 2 1 . . Treads 1 | 1 . . . Leg . | . . . . Wheel 2 | 1 1 . . Hover . | . . . . Flight . | . . . . Utility 4 | 2 2 . . Device 2 | 1 1 . . Storage 2 | 1 1 . . Processor . | . . . . Hackware . | . . . . Protection . | . . . . Artifact . | . . . . Weapon 6 | 3 2 1 . Energy Gun 2 | 2 . . . Energy Cannon 1 | . 1 . . Ballistic Gun 2 | 1 1 . . Ballistic Cannon . | . . . . Launcher 1 | . . 1 . Special Weapon . | . . . . Impact Weapon . | . . . . Slashing Weapon . | . . . . Piercing Weapon . | . . . . Special Melee Weapon . | . . . . Unidentified Prototypes . | . . . . Parts Lost 1 | . . . 1 Power . | . . . . Propulsion . | . . . . Utility . | . . . . Weapon 1 | . . . 1 Highest Loss Streak 1 | . . . 1 To Critical Strikes . | . . . . Average Backups 18 | 3 15 24 24 Power 3 | . 2 4 4 Propulsion 3 | 1 2 4 4 Utility 6 | . 4 9 9 Weapon 5 | . 4 6 6 Tool/Special . | . . . . Unused Backups 23 | 1 . 1 21 Power 3 | . . . 3 Propulsion 5 | 1 . . 4 Utility 9 | . . . 9 Weapon 5 | . . 1 4 Tool/Special 1 | . . . 1 Average Slot Usage (%) 100 | . 100 100 100 Engine 14 | . 14 14 14 Treads 14 | . 14 14 14 Wheel 14 | . 14 14 14 Device 14 | . 14 14 14 Storage 14 | . 14 14 14 Energy Gun 2 | . 4 . . Energy Cannon 11 | . 9 14 14 Ballistic Gun 8 | . 14 . . Launcher 5 | . . 13 14 Peak Build Rating 12 | 7 11 12 12 Average Rating 10 | 5 9 11 11 On Entrance 7 | . 7 11 12 Avg Prop Armor Cover (%) 10 | 3 9 12 12 Naked Turns . | . . . . Heaviest Build 92 | 13 91 92 92 Greatest Support 20 | 20 20 16 16 Greatest Overweight (x) 5 | . 5 5 5 Average Overweight (x) 4 | . 3 5 5 Largest Inventory Capacity 25 | 8 25 25 25 Average Capacity 20 | 7 19 25 25 Most Carried 25 | 5 25 25 25 Average Carried 19 | 3 15 24 25 Final Capacity 25 | 8 25 25 25 Final Carried 25 | 5 25 25 25 Class Distribution -------------------- 100% | Mutant Dominant Class ---------------- Mutant | -10/Materials Mutant | -10/Mines Mutant | -10/Subcaves Resources | -11 -10 -10 -10 ----------- Run | Yrd Mat Min Sub Matter Collected 570 | 289 150 124 7 Remotely . | . . . . Salvage Created 723 | 120 513 44 46 Parts 61 | 7 40 10 4 Haulers Intercepted 1 | . 1 . . Recyclers Shooed . | . . . . Parts Field Recycled . | . . . . Retrieved Matter . | . . . . Parts Self-Destructed 2 | . . . 2 Prevented . | . . . . Parts Restored . | . . . . Kills | -11 -10 -10 -10 ------- Run | Yrd Mat Min Sub Combat Hostiles Destroyed 21 | . 11 9 1 Guns 5 | . 5 . . Cannons 7 | . 6 . 1 AOE 9 | . . 9 . Classes Destroyed 9 | 2 6 . 1 Worker 2 | . 1 1 . Tunneler 3 | 3 . . . Hauler 1 | . 1 . . Recycler 2 | 1 1 . . Operator 2 | . 2 . . Watcher 2 | . 2 . . Swarmer 15 | . 6 9 . Grunt 5 | . 5 . . Subdweller 1 | . . . 1 Best Kill Streak 6 | 2 5 6 1 Combat Bots Only 6 | . 3 6 1 Max Kills in Single Turn 2 | 1 2 2 1 Gunslinging 1 | . 1 . . Exploded 2 | . . 2 . Melee . | . . . . Uniques/NPCs Destroyed . | . . . . Combat | -11 -10 -10 -10 -------- Run | Yrd Mat Min Sub Hostile Shots Fired 88 | . 55 21 12 Missed 29 | . 15 10 4 Hits 59 | . 40 11 8 Projectile 59 | . 40 11 8 Damage Taken 784 | . 427 106 251 Core 253 | . 148 14 91 Absorbed by Shields . | . . . . Core Remaining (%) 100 | 100 . . . Volleys Fired 77 | 11 50 10 6 Largest 2 | 2 2 1 1 Hottest 80 | 60 80 30 60 Shots Fired 120 | 20 84 10 6 Gun 73 | 20 53 . . Cannon 37 | . 31 . 6 Launcher 10 | . . 10 . Special . | . . . . Kinetic 45 | 9 36 . . Thermal 65 | 11 48 . 6 Explosive 10 | . . 10 . Electromagnetic . | . . . . Robot Hit Streak 8 | 4 8 2 7 Robot Miss Streak 7 | 2 7 1 . Penetration Max . | . . . . Secondary Targets 1 | . 1 . . Max Gunslinging Chain 1 | . 1 . . Shots Hit Robots 75 | 13 50 6 6 Core Hits 44 | 7 23 12 2 Critical Kills . | . . . . Critical Parts Destroyed . | . . . . Critical Strikes . | . . . . Melee Attacks . | . . . . Impact . | . . . . Slashing . | . . . . Piercing . | . . . . Sneak Attacks . | . . . . Combat Hostiles . | . . . . Follow-up Attacks . | . . . . Damage Inflicted 1534 | 132 744 552 106 Guns 493 | 132 361 . . Cannons 476 | . 373 . 103 Explosions 552 | . . 552 . Melee . | . . . . Ramming 13 | . 10 . 3 Kinetic 268 | 45 223 . . Thermal 701 | 87 511 . 103 Explosive 552 | . . 552 . Electromagnetic . | . . . . Impact . | . . . . Slashing . | . . . . Piercing . | . . . . Highest Corruption 2 | . 1 2 2 Average Corruption 1 | . 1 2 2 Corruption Purged . | . . . . Corruption Blocked . | . . . . Effects 13 | . . 7 6 Message Errors 2 | . . 1 1 Matter Fused 3 | . . 3 . Heat Flow Errors 2 | . . 1 1 Energy Discharges 2 | . . 1 1 Data Loss (minor) 2 | . . 1 1 Data Loss (major) 1 | . . . 1 Alerts 1 | . . . 1 Overload Shots . | . . . . Overflow Damage 6 | . . 6 . Projectiles . | . . . . Explosions 6 | . . 6 . Melee . | . . . . Knockbacks . | . . . . Impact . | . . . . Kinetic . | . . . . Secondary . | . . . . Self-Inflicted Damage 24 | . 5 18 1 Shots 3 | . . 3 . Rammed 2 | . 1 . 1 Targets Rammed 2 | . 1 . 1 Kicked . | . . . . Crushed . | . . . . Highest Temperature 159 | 40 85 159 88 Average Temperature 34 | 19 35 91 61 Received Heat Transfer 201 | . 132 . 69 Siege Activations . | . . . . Martial Activations . | . . . . Shielding Activations . | . . . . Robots Disrupted . | . . . . Combat Hostiles . | . . . . Robots Corrupted . | . . . . Combat Hostiles . | . . . . Parts Fried . | . . . . Impact Corruptions . | . . . . Robots Melted . | . . . . Combat Hostiles . | . . . . Parts Melted 1 | . 1 . . Heat Transferred 1524 | 200 1102 . 222 Parts Sabotaged . | . . . . Parts Stolen . | . . . . Parts Stripped . | . . . . Power Chain Reactions . | . . . . Alert | -11 -10 -10 -10 ------- Run | Yrd Mat Min Sub Maximum Alert Level 1 | . . 1 . Low Security (%) 95 | 100 100 88 . Level 1 4 | . . 11 . Level 2 . | . . . . Level 3 . | . . . . Level 4 . | . . . . Level 5 . | . . . . High Security . | . . . . Max Security . | . . . . Peak Influence 258 | 5 92 258 . Initial 9 | . . 9 . Average 44 | 1 22 89 . Influence Increases 702 | 20 364 318 . Destroy 0b10 Robot/C 400 | . 220 180 . Destroy 0b10 Robot/NC 60 | 20 35 5 . Destroy Leader 86 | . 56 30 . Successful Hack 19 | . 19 . . Disable Machine 90 | . 15 75 . Destroy Structure 32 | . 4 28 . Lose Combat Pursuer 15 | . 15 . . Influence Decreases 702 | 20 339 343 . Entered New Map 16 | . . 16 . Time Decay 686 | 20 339 327 . Squads Dispatched 2 | . 2 . . Investigation . | . . . . Extermination . | . . . . Reinforcement 2 | . 2 . . Assault . | . . . . Garrison . | . . . . Intercept . | . . . . Searches Triggered . | . . . . Construction Impeded . | . . . . Haulers Reinforced . | . . . . Active Scanning Responses . | . . . . Cargo Convoy Interrupts . | . . . . Stealth | -11 -10 -10 -10 --------- Run | Yrd Mat Min Sub Distress Signals 2 | . 2 . . Communications Jammed . | . . . . Distress Signals . | . . . . Times Spotted 34 | . 21 9 4 Peak Tracking Total 4 | . 4 3 4 Tactical Retreats 1 | . 1 . . Traps | -11 -10 -10 -10 ------- Run | Yrd Mat Min Sub Traps Triggered 1 | . 1 . . Indirectly . | . . . . Trap Hack Attempts . | . . . . Triggered . | . . . . Disarmed . | . . . . Reprogrammed . | . . . . Reused . | . . . . Traps Extracted . | . . . . Installed . | . . . . Triggered . | . . . . Machines | -11 -10 -10 -10 ---------- Run | Yrd Mat Min Sub Machines Disabled 6 | . 1 5 . Max in Single Turn 2 | . 1 2 . Machines Repaired . | . . . . Machines Dismantled . | . . . . Machines Sabotaged . | . . . . Overloaded Fab Kills . | . . . . Hacking | -11 -10 -10 -10 --------- Run | Yrd Mat Min Sub Machines Accessed 7 | . 6 1 . Terminals 6 | . 6 . . Fabricators . | . . . . Repair Stations . | . . . . Recycling Units . | . . . . Scanalyzers . | . . . . Garrison Access . | . . . . Total Hacks 19 | . 18 1 . Successful 7 | . 6 1 . Failed 12 | . 12 . . Catastrophic 3 | . 3 . . Database Lockouts . | . . . . Manual 16 | . 16 . . Terminals 18 | . 18 . . Fabricators . | . . . . Repair Stations . | . . . . Recycling Units . | . . . . Scanalyzers . | . . . . Garrison Access . | . . . . Terminal Hacks 5 | . 4 1 . Robot Analysis 2 | . 2 . . Open Door 1 | . . 1 . Terminal Index 1 | . 1 . . Locate Traps 1 | . 1 . . Fabricator Hacks . | . . . . Repair Station Hacks . | . . . . Recycling Unit Hacks . | . . . . Scanalyzer . | . . . . Garrison Access Hacks . | . . . . Unauthorized Hacks 2 | . 2 . . Terminals 2 | . 2 . . Botnet 2 | . 2 . . Fabricators . | . . . . Repair Stations . | . . . . Recycling Units . | . . . . Scanalyzers . | . . . . Garrison Access . | . . . . Data Cores Recovered . | . . . . Used . | . . . . Hacking Detections 6 | . 6 . . Full Trace Events 1 | . 1 . . Feedback Events . | . . . . Feedback Blocked . | . . . . Robot Schematics Acquired . | . . . . Robots Built . | . . . . Authchips . | . . . . Time . | . . . . Total Robot Build Rating . | . . . . Part Schematics Acquired . | . . . . Parts Built . | . . . . Authchips . | . . . . Time . | . . . . Total Part Build Rating . | . . . . Part Studies Acquired . | . . . . Parts Repaired . | . . . . Time . | . . . . Parts Recycled . | . . . . Recycled Matter . | . . . . Retrieved Matter . | . . . . Retrieved Components . | . . . . Parts Scanalyzed . | . . . . Part Schematics Acquired . | . . . . Parts Damaged . | . . . . Bothacking | -11 -10 -10 -10 ------------ Run | Yrd Mat Min Sub Used RIF Installer . | . . . . Robots Hacked . | . . . . Non-combat . | . . . . Combat . | . . . . Robot Hacks Applied . | . . . . Relay Couplers Released . | . . . . Fabnet Peak Effective % . | . . . . Robots Rewired . | . . . . Allies Hacked . | . . . . Hacks Repelled . | . . . . Allies | -11 -10 -10 -10 -------- Run | Yrd Mat Min Sub Total Allies 2 | . . 2 . Largest Group 2 | . . 2 2 Highest-Rated Group 42 | . . 42 42 Highest-Rated Ally 31 | . . 31 31 Total Orders . | . . . . Ally Attacks 5 | . . . 5 Total Damage 74 | . . . 74 Kills . | . . . . Allies Corrupted . | . . . . Allies Melted . | . . . . Intel | -11 -10 -10 -10 ------- Run | Yrd Mat Min Sub Active Infowar (turns) 595 | 53 542 . . Seismic 595 | 53 542 . . Robot Analysis Total 2 | . 2 . . Derelict Logs Recovered 2 | . . 1 1 Drone Launches . | . . . . Drone Recoveries . | . . . . Exploration | -11 -10 -10 -10 ------------- Run | Yrd Mat Min Sub Turns Passed 3001 | 141 1635 918 307 Spaces Moved 1423 | 62 688 506 167 Core 2 | 2 . . . Treads 211 | 55 156 . . Legs . | . . . . Wheels 1210 | 5 532 506 167 Hover . | . . . . Flight . | . . . . Fastest Speed 50 | 50 100 175 175 Average Speed 171 | 151 170 175 175 Slowest Speed 175 | 160 175 175 175 Overloaded Moves . | . . . . Propulsion Burnouts . | . . . . Robots Hopped . | . . . . Potential Cave-ins . | . . . . Cave-ins Triggered . | . . . . Exploration Rate (%) 53 | 5 94 99 16 Regions Visited 3 Branch Regions 2 Pre-discovered Areas 1 | . . . 1 Known Exits Taken . | . . . . Unknown Exits Taken 3 | 1 1 1 . Scrap Searched 3 | . . 3 . Spaces Dug . | . . . . Terrain Destroyed 36 | . . 36 . Melee . | . . . . Projectile . | . . . . AOE 36 | . . 36 . Terrain Rammed . | . . . . Walls Destroyed . | . . . . Machines Disabled . | . . . . Actions | -11 -10 -10 -10 --------- Run | Yrd Mat Min Sub Total 1862 | 88 1069 530 175 Wait 307 | . 298 9 . Move 1421 | 61 688 505 167 Hop . | . . . . Pick Up 31 | 7 22 2 . Fast Attach 6 | 6 . . . Attach 1 | 1 . . . Detach . | . . . . Swap 9 | 1 6 1 1 Drop 9 | 1 5 3 . Fire 77 | 11 50 10 6 Melee . | . . . . Ram 1 | . . . 1 Kick . | . . . . Crush . | . . . . Escape Stasis . | . . . . Rewire . | . . . . Trap . | . . . . Miscellaneous . | . . . . Route ------- -11/Scrapyard -10/Materials (discovered 5 exits: [*Mat x3] / *Min x2) -10/Mines (discovered 3 exits: [*Mat x2] / [*Sub]) -10/Subcaves History --------- Turn | Location | Event 28 | -11/Scrapyard | Discovered new exit (range 16) 142 | -11/Scrapyard | Entered Materials 315 | -10/Materials | Build established: Mutant 635 | -10/Materials | Discovered new exit (range 15) 840 | -10/Materials | Discovered new exit (range 10) 908 | -10/Materials | Discovered new exit (range 16) 1171 | -10/Materials | Core integrity fell below 50% 1229 | -10/Materials | Discovered new exit (range 14) 1493 | -10/Materials | Discovered new exit (range 16) 1777 | -10/Materials | Entered Mines 1939 | -10/Mines | Discovered new exit (range 12) 2232 | -10/Mines | Found the Drone Emporium 2239 | -10/Mines | Found Prototype Device 2625 | -10/Mines | Discovered new exit (range 11) 2632 | -10/Mines | Discovered new exit (range 13) 2695 | -10/Mines | Entered Subcaves 2695 | -10/Subcaves | Accompanied by 2 allies 2696 | -10/Subcaves | Approached by a straggling Scientist 2700 | -10/Subcaves | Led the pair of lost Derelicts to an unsafe place 2768 | -10/Subcaves | Learned location of Zion (-7) 2768 | -10/Subcaves | Met a Zionite searching for "candidates" 2976 | -10/Subcaves | Ambushed by Subdwellers from Twisted Machinery 2988 | -10/Subcaves | Core integrity fell below 20% 2994 | -10/Subcaves | Learned Materials stockpile data 3002 | -10/Subcaves | Destroyed by VL-TP9(R) with Subdweller Beam Cannon Last Messages --------------- 02976_ WN-B34(R) emerges from the Twisted Machinery. 02979_ 5C-W72(R) emerges from the Twisted Machinery. 02986_ Slammed into WN-B34(R). 02987_ GT-IQK(z) destroyed. 02990_ Subatomizers dissect the Mak. Power Source. 02991_ OQ-G0T(g) destroyed. 02991_ WN-B34(R) destroyed. 02992_ 5C-W72(R) destroyed. 02993_ Acquired 7 matter. 02994_ Acquired derelict log, extracted data. Data stored: Materials stockpile data. 02995_ YL-2YP(R) affixes Scrap Shield Fragment to Scrap Shield. 02998_ System corrupted: Heat flow error (+103). 03000_ Grenade Launcher destroyed. 03001_ Subatomizers dissect the Mak. Power Source. Map ----- +----------------------------------------------------+ | ???? ?????????## ## #####?????? | | ???? ????????????#### #####??????? | | ???? ???????????????## ## #??????? | | ?????????????????????# " ### #??????? | | ?????????????????????# """ #?### ##??????? | | ?????????????????????# " ##???#"# #???????? | | ????????????????????# #####????### #???????? | | ????????????????????# #??????????## #???????? | | ????????????????????# ##?????????## #???????? | | ????????????????????# #??????????# ##???????? | | ????????????????????## #??????????# #????????? | | ????????????????????? # ??????????# #????????? | | ???????????????????? # ??????????# ##???????? | | ??????????????????? "?????????## ##??????? | | ??????????????????? ? "??????????# ##?????? | | ????????????????????? "???????????##"" #?????? | | ????????????????????????????????????##" ##????? | | ?????????????????????????????????????## #????? | | ????????????????????##? ????????#### #????? | | ????????????????????# """"????#####""" ##????? | | ?????????????????????# """"???## #?????? | | ??????????????????????#""""???# ##?????? | | ?????????????????????#?#""##??## ##??????? | | ??????????????????? ?#;## ##### ###???????? | | ?????????????????"""""# R ## # #?????????? | | ????????????????# " """ *@%*% ##?????????? | | ?????????????????#### !&R%!%* ##??????????? | | ????????????????????##% =#!##!### O#???????????? | | ?????????????????????## ######?# #??????????? | | ??????????????????????## ???????### ????????? | | ???????????????????????##?????????# ??????? | | ??????????????????????????????????# ### #?????? | | ??????????????????????????????????####?? #????? | | ????????????????????????????????????????? #????? | | ?????????????????????????????????????????? #????? | | ???????????????????????????????????????????##????? | | ?????????????????????????????????????????????????? | | ?????????????????????????????????????????????????? | | ?????????????????????????????????????????????????? | | ?????????????????????????????????????????????????? | | ?????????????????????????????????????????????????? | | ?????????????????????????????????????????????????? | | ?????????????????????????????????????????????????? | | ?????????????????????????????????????????????????? | | ?????????????????????????????????????????????????? | | ?????????????????????????????????????????????????? | | ?????????????????????????????????????????????????? | | ?????????????????????????????????????????????????? | | ?????????????????????????????????????????????????? | | ?????????????????????????????????????????????????? | +----------------------------------------------------+ Best States ------------- Heat Dissipation 39 Energy Generation 10 Energy Capacity 250 Matter Stores 300 Matter Capacity 300 Sight Range 16 Terrain Scan Density 10 Evasion (%) 40 Recoil Reduction 1 Item Schematics ----------------- None Robot Schematics ------------------ None Fabricated ------------ Nothing Repaired ---------- Nothing Studied --------- None Alien Tech Used ----------------- None Achievements -------------- None Challenges ------------ None Game ------ Seed ConceptThrusterSpear Manual? 0 Play Time 00:18:06 Cumulative 25.9 hours Start 2025.11.12 @ 21:44:47 End 2025.11.12 @ 22:08:37 Sessions 1 Manual Loads 0 Difficulty Rogue Special Mode None Game No. 34 Rogue 34 Adventurer 0 Explorer 0 Win Type - Total 0 Types 0/0/0/0/0/0/0/0/0/0 Lore% 9 Gallery% 13 Achievement% 12 Wizard Run 0 Options --------- Layout 1 ASCII 0 Keyboard 1 Movement Arrows Keybinds 1 Fullscreen 2 Font 24/Smallcaps Map View 50x35 Zoom Use 0% Tactical HUD 1 Map Filters NONE Filters NONE Steam 1 RUN: ea5d849a-4316-4428-8b2b-07b768ac1bbc